Cogmind - Beta 16 *** ADVENTURER MODE // 2025.12.29 @ 02:38:34 Player: AdamSkI2003 Result: Destroyed by Enhanced Grunt with Neutron Cannon Performance ------------- Evolutions (4) 2000 Regions Visited (9) 1800 Robots Destroyed (234) 1170 Value Destroyed (8149) 8149 Prototype IDs (13) 260 Alien Tech Used (0) 0 Bonus (783) 783 TOTAL SCORE: 14162 Bonus ------- High Alert Combat Kills 373 Follower Combat Kills 564 Met Data Miner 300 Friendly Fire -454 Cogmind --------- Core Integrity 0/850 Matter 251/300 Energy 19/100 System Corruption 4% Temperature Cool (0) Movement Core (1650) Ox32 Location -6/Data Miner Parts ------- > --- POWER (2) -------- (None) > --- PROPULSION (4) --- (None) > --- UTILITY (5) ------ Advanced Heat Sink Advanced Heat Sink Huge Storage Unit Improved Sensor Array > --- WEAPON (4) ------- Advanced Beam Rifle Compact Ion Cannon Heavy Flak Cannon > --- INVENTORY (25) --- Light Ion Engine Light Fission Core Improved Heat Sink Energy Well (350) Terrain Scanner Improved Terrain Scanner Improved EM Shotgun Improved EM Shotgun Precision Shock Rifle Heavy Particle Gun Advanced Beam Rifle Precision Assault Rifle Precision Assault Rifle Heavy Flak Cannon Advanced EMP Blaster Proton Missile Launcher Improved Grenade Launcher Improved Grenade Launcher Power Maul Power Maul Falx Peak State ------------ > --- POWER ------------ Neutrino Core Antimatter Reactor > --- PROPULSION ------- Wheel Wheel Wheel Compact Wheel > --- UTILITY ---------- Improved Cooling System Huge Storage Unit Huge Storage Unit Gravity Neutralizer Improved Sensor Array > --- WEAPON ----------- Precision Shock Rifle Heavy Particle Cannon Heavy Ion Cannon Heavy Flak Cannon > --- INVENTORY -------- Improved Deuterium Engine Light Fission Core Light Fission Core Antimatter Reactor Wheel Improved Terrain Scanner Improved EM Shotgun Improved EM Shotgun Precision Shock Rifle Heavy Particle Gun Advanced Beam Rifle Advanced Beam Rifle Plasma Rifle Enhanced Autogun Precision Assault Rifle Precision Assault Rifle Gauss Cannon Heavy Flak Cannon Shock Bomb Launcher Advanced EMP Blaster Improved Grenade Launcher Improved Grenade Launcher Power Maul Power Maul Axe [Rating: 59] Favorites ----------- Power Antimatter Reactor Engine Deuterium Engine Power Core Neutrino Core Reactor Antimatter Reactor Propulsion Wheel Wheel Wheel Hover Unit Backup Propulsion III Utility Huge Storage Unit Device Improved Sensor Array Storage Huge Storage Unit Processor Improved Signal Interpreter Weapon Heavy Particle Cannon Energy Gun Precision Shock Rifle Energy Cannon Heavy Particle Cannon Ballistic Gun Enhanced Autogun Ballistic Cannon Gauss Cannon Launcher Subdweller Shrapnel Launcher Impact Weapon Heavy Mace Slashing Weapon Mining Claw Build | -11 -10 -10 -8 -7 -7 -7 -6 -6 -6 ------- Run | Yrd Mat Sub Mat Fac Was Fac Fac Low Dat Slots Evolved 8 | . . . 4 2 . . 2 . . Power 1 | . . . 1 . . . . . . Propulsion 2 | . . . 1 . . . 1 . . Utility 3 | . . . 1 1 . . 1 . . Weapon 2 | . . . 1 1 . . . . . Parts Attached 125 | 6 10 1 25 16 8 14 40 4 1 Power 24 | 1 1 . 6 3 2 . 8 2 1 Engine 10 | 1 1 . 3 . . . 4 . 1 Core 12 | . . . 3 3 1 . 3 2 . Reactor 2 | . . . . . 1 . 1 . . Propulsion 33 | 2 2 . 8 1 1 4 14 1 . Treads . | . . . . . . . . . . Leg . | . . . . . . . . . . Wheel 33 | 2 2 . 8 1 1 4 14 1 . Hover . | . . . . . . . . . . Flight . | . . . . . . . . . . Utility 24 | 1 5 . 2 3 3 2 8 . . Device 15 | 1 . . 1 2 2 2 7 . . Storage 8 | . 5 . 1 1 . . 1 . . Processor 1 | . . . . . 1 . . . . Hackware . | . . . . . . . . . . Protection . | . . . . . . . . . . Artifact . | . . . . . . . . . . Weapon 44 | 2 2 1 9 9 2 8 10 1 . Energy Gun 15 | 1 1 . 5 2 . 4 1 1 . Energy Cannon 6 | . . . 1 2 . 1 2 . . Ballistic Gun 6 | 1 . . 1 . . 2 2 . . Ballistic Cannon 12 | . . . 1 5 2 . 4 . . Launcher 3 | . . 1 1 . . 1 . . . Special Weapon . | . . . . . . . . . . Impact Weapon 1 | . . . . . . . 1 . . Slashing Weapon 1 | . 1 . . . . . . . . Piercing Weapon . | . . . . . . . . . . Special Melee Weapon . | . . . . . . . . . . Unidentified Prototypes 13 | . . . 4 1 . 5 3 . . Parts Lost 52 | . . 1 8 6 . . 24 6 7 Power 11 | . . . 2 1 . . 3 2 3 Propulsion 24 | . . 1 5 2 . . 11 4 1 Utility 4 | . . . . 1 . . 2 . 1 Weapon 13 | . . . 1 2 . . 8 . 2 Highest Loss Streak 7 | . . 1 3 2 . . 4 3 7 To Critical Strikes . | . . . . . . . . . . Average Backups 22 | 1 8 15 22 24 24 24 24 23 22 Power 2 | . 1 1 . 1 2 3 3 3 2 Propulsion . | . 2 2 . 1 1 1 . . . Utility 3 | . 3 7 8 3 2 2 2 4 4 Weapon 15 | . 2 4 12 18 18 18 18 16 15 Tool/Special . | . . . . . . . . . . Unused Backups 48 | . . . 14 2 1 3 13 . 15 Power 7 | . . . . . 1 1 3 . 2 Propulsion 4 | . . . . . . . 4 . . Utility 9 | . . . 6 1 . . . . 2 Weapon 28 | . . . 8 1 . 2 6 . 11 Tool/Special . | . . . . . . . . . . Average Slot Usage (%) 91 | . 99 91 90 87 90 95 92 89 75 Engine 4 | . 14 14 12 . . . 3 . . Core 7 | . . . 4 13 9 7 5 11 11 Reactor 1 | . . . . . 4 7 2 . . Wheel 19 | . 28 20 22 13 14 18 21 16 5 Device 14 | . 10 . 6 13 11 15 19 20 20 Storage 15 | . 17 28 18 15 15 15 13 13 12 Energy Gun 7 | . 13 14 9 6 7 8 5 13 11 Energy Cannon 7 | . . . 8 9 7 9 5 6 6 Ballistic Gun 2 | . 13 . . . . . 3 6 5 Ballistic Cannon 6 | . . . 2 12 15 10 6 . . Launcher 1 | . . 8 5 . . . . . . Peak Build Rating 59 | 8 11 11 27 44 55 56 59 57 53 Average Rating 40 | 4 9 10 21 40 53 51 51 53 50 On Entrance 31 | . 8 9 11 27 43 55 49 57 53 Avg Prop Armor Cover (%) . | . . . . . . . . . . Naked Turns . | . . . . . . . . . . Heaviest Build 221 | 8 128 134 191 197 217 217 221 197 197 Greatest Support 58 | 20 26 26 42 42 38 38 58 40 10 Greatest Overweight (x) 19 | . 4 8 11 7 7 10 12 19 19 Average Overweight (x) 4 | . . 5 5 5 5 6 4 7 19 Largest Inventory Capacity 25 | 5 25 25 25 25 25 25 25 25 25 Average Capacity 24 | 5 12 25 25 25 25 25 25 25 25 Most Carried 25 | 5 12 22 25 25 25 25 25 25 23 Average Carried 23 | 1 8 17 24 24 24 24 24 23 22 Final Capacity 25 | 5 25 25 25 25 25 25 25 25 25 Final Carried 25 | 5 12 22 25 25 25 25 25 23 21 Class Distribution -------------------- 36% | Scavenger-Skirmisher 35% | Skirmisher 9% | Mutant 8% | Scavenger-Gunner Dominant Class ---------------- Mutant | -10/Materials Mutant | -10/Subcaves Scavenger-Gunner | -8/Materials Skirmisher | -7/Factory Skirmisher | -7/Waste Skirmisher | -7/Factory Scavenger-Skirmisher | -6/Factory Scavenger-Skirmisher | -6/Lower Caves Skirmisher | -6/Data Miner Resources | -11 -10 -10 -8 -7 -7 -7 -6 -6 -6 ----------- Run | Yrd Mat Sub Mat Fac Was Fac Fac Low Dat Matter Collected 5353 | 331 145 160 887 644 328 547 2040 271 . Remotely . | . . . . . . . . . . Salvage Created 8726 | 136 363 155 1736 1484 84 849 3445 474 . Parts 433 | 12 18 12 96 75 3 47 155 15 . Haulers Intercepted 7 | . . . 3 . . 2 2 . . Recyclers Shooed 7 | . . . 1 1 . 1 4 . . Parts Field Recycled . | . . . . . . . . . . Retrieved Matter . | . . . . . . . . . . Parts Self-Destructed 16 | . . . . . . . . 16 . Prevented . | . . . . . . . . . . Parts Restored . | . . . . . . . . . . Kills | -11 -10 -10 -8 -7 -7 -7 -6 -6 -6 ------- Run | Yrd Mat Sub Mat Fac Was Fac Fac Low Dat Combat Hostiles Destroyed 146 | 1 4 6 34 29 . 11 51 10 . Guns 34 | 1 4 . 6 3 . 2 13 5 . Cannons 84 | . . . 14 24 . 7 35 4 . AOE 23 | . . 6 14 1 . 2 . . . Classes Destroyed 17 | 3 2 1 7 1 . 2 1 . . Worker 24 | 1 1 . 5 3 . 5 9 . . Builder 12 | . . . 2 1 . 1 8 . . Tunneler 9 | 4 . . 2 1 . 1 1 . . Hauler 7 | . . . 3 . . 2 2 . . Recycler 15 | . 2 . 3 3 . 2 5 . . Mechanic 2 | . . . . . . 1 1 . . Operator 2 | . . . 1 1 . . . . . Watcher 16 | . 2 . 5 3 . 2 4 . . Swarmer 26 | . . . 8 3 . . 12 3 . Grunt 69 | 1 4 . 15 18 . 6 20 5 . Brawler 3 | . . . . . . 1 2 . . Duelist 3 | . . . 1 . . . 2 . . Sentry 14 | . . . 9 3 . . 2 . . Hunter 8 | . . . 1 1 . 2 2 2 . Programmer 15 | . . . . 4 . 2 9 . . Behemoth 1 | . . . . . . . 1 . . Subdweller 6 | . . 6 . . . . . . . Wasp 1 | . . . . . 1 . . . . Savage 1 | . . . . . . . 1 . . Best Kill Streak 8 | 5 3 6 8 6 . 5 7 3 . Combat Bots Only 6 | 1 2 6 5 6 . 3 6 3 . Max Kills in Single Turn 7 | 2 1 2 3 2 1 2 7 1 . Gunslinging . | . . . . . . . . . . Exploded 2 | . . 2 2 1 . 1 . . . Melee . | . . . . . . . . . . Uniques/NPCs Destroyed . | . . . . . . . . . . Combat | -11 -10 -10 -8 -7 -7 -7 -6 -6 -6 -------- Run | Yrd Mat Sub Mat Fac Was Fac Fac Low Dat Hostile Shots Fired 764 | 2 19 22 111 156 . 37 291 87 39 Missed 227 | . 4 7 44 48 . 6 86 23 9 Hits 537 | 2 15 15 67 108 . 31 205 64 30 Melee 5 | . . . . . . . 5 . . Projectile 532 | 2 15 15 67 108 . 31 200 64 30 Critical Strikes 14 | . . 1 4 . . 1 8 . . Part Disruptions 2 | . . . . . . . 1 . 1 Damage Taken 7806 | 16 133 250 898 1067 . 642 2980 726 1094 Core 1481 | . 17 97 121 194 . 184 321 135 412 Absorbed by Shields . | . . . . . . . . . . Ignored by Resistances 2173 | 6 46 71 251 324 . 145 835 207 288 Regen/Repaired (Parts) 236 | . . . . . 4 232 . . . Core Remaining (%) 69 | 100 . 54 78 . . 46 . . . Volleys Fired 443 | 7 34 7 91 69 2 41 162 23 7 Largest 4 | 2 2 2 3 4 4 4 4 4 4 Hottest 254 | 70 85 105 168 223 210 245 254 254 223 Shots Fired 1359 | 14 64 13 220 251 8 159 520 87 23 Gun 580 | 14 64 7 88 58 2 50 221 64 12 Cannon 749 | . . . 110 192 6 108 299 23 11 Launcher 30 | . . 6 22 1 . 1 . . . Special . | . . . . . . . . . . Kinetic 588 | 7 32 6 57 114 4 65 272 23 8 Thermal 660 | 7 32 7 151 136 2 52 194 64 15 Explosive 1 | . . . . . . 1 . . . Electromagnetic 110 | . . . 12 1 2 41 54 . . Robot Hit Streak 29 | 4 12 9 24 18 8 12 29 11 7 Robot Miss Streak 5 | 1 2 1 2 5 . 4 4 4 2 Penetration Max 1 | . . . . 1 . . 1 . . Secondary Targets . | . . . . . . . . . . Shots Hit Robots 904 | 10 31 8 164 161 7 92 359 53 19 Core Hits 432 | 7 16 11 81 62 2 37 168 31 17 Critical Kills 5 | . . . 1 1 . 2 1 . . Critical Parts Destroyed 8 | . . . . . . 4 4 . . Critical Strikes 45 | . 3 . 4 8 1 6 20 2 1 Burn 15 | . 3 . 2 1 . . 6 2 1 Meltdown 2 | . . . . 1 . 1 . . . Destroy 8 | . . . 1 . . 5 2 . . Blast 16 | . . . 1 6 1 . 8 . . Corrupt 1 | . . . . . . . 1 . . Smash 3 | . . . . . . . 3 . . Melee Attacks 13 | . 3 . . . . . 10 . . Impact 10 | . . . . . . . 10 . . Slashing 3 | . 3 . . . . . . . . Piercing . | . . . . . . . . . . Sneak Attacks 3 | . . . . . . . 3 . . Combat Hostiles . | . . . . . . . . . . Follow-up Attacks . | . . . . . . . . . . Damage Inflicted 23601 | 139 385 868 4510 3722 196 2959 9613 810 399 Guns 6843 | 139 385 61 1294 622 21 789 2784 586 162 Cannons 11960 | . . . 1561 2855 175 1508 5430 194 237 Explosions 4173 | . . 807 1655 245 . 662 804 . . Melee 595 | . . . . . . . 595 . . Ramming 30 | . . . . . . . . 30 . Kinetic 10721 | 88 175 807 2090 1800 125 759 4508 161 208 Thermal 9743 | 51 210 61 2205 1677 50 1216 3463 619 191 Explosive 493 | . . . . 168 . 325 . . . Electromagnetic 2019 | . . . 215 77 21 659 1047 . . Impact 595 | . . . . . . . 595 . . Slashing . | . . . . . . . . . . Piercing . | . . . . . . . . . . Highest Corruption 4 | . . . 4 . . . 4 4 4 Average Corruption 2 | . . . 1 . . . 2 4 4 Corruption Purged . | . . . . . . . . . . Corruption Blocked . | . . . . . . . . . . Effects 85 | . . . 20 . . . 48 12 5 Message Errors 19 | . . . 6 . . . 10 3 . Matter Fused 18 | . . . 4 . . . 11 2 1 Heat Flow Errors 7 | . . . 1 . . . 3 1 2 Energy Discharges 14 | . . . 2 . . . 8 3 1 Parts Rejected 1 | . . . . . . . 1 . . Parts Fused 1 | . . . . . . . 1 . . Data Loss (minor) 11 | . . . 5 . . . 4 2 . Data Loss (major) 3 | . . . . . . . 3 . . Misfires 3 | . . . . . . . 2 . 1 Alerts 2 | . . . . . . . 1 1 . Weapon Failures 6 | . . . 2 . . . 4 . . Overload Shots . | . . . . . . . . . . Overflow Damage 839 | . . . 156 103 . 83 497 . . Projectiles 222 | . . . 26 29 . 83 84 . . Explosions 276 | . . . 130 74 . . 72 . . Melee 341 | . . . . . . . 341 . . Knockbacks 53 | . . . 1 7 2 5 36 . 2 Impact 2 | . . . . . . . 2 . . Kinetic 48 | . . . 1 6 1 5 33 . 2 Secondary 3 | . . . . 1 1 . 1 . . Self-Inflicted Damage 306 | . . 12 98 107 . 32 43 14 . Shots 10 | . . 1 5 2 . 1 1 . . Rammed 4 | . . . . . . . . 4 . Targets Rammed 4 | . . . . . . . . 4 . Kicked . | . . . . . . . . . . Crushed . | . . . . . . . . . . Highest Temperature 579 | 46 144 4 291 453 153 548 579 432 184 Average Temperature 97 | 22 61 3 71 110 69 110 107 127 60 Received Heat Transfer 2313 | 12 96 30 504 384 . 171 1005 111 . Effects 18 | . . . 2 1 . 4 9 2 . Shutdowns 6 | . . . . . . 2 4 . . Energy Bleed 2 | . . . . . . . 1 1 . Interference 2 | . . . 2 . . . . . . Short Circuit 2 | . . . . 1 . . 1 . . Damage (minor) 2 | . . . . . . 1 . 1 . Damage (major) 3 | . . . . . . . 3 . . Damage (core) 1 | . . . . . . 1 . . . Siege Activations . | . . . . . . . . . . Martial Activations . | . . . . . . . . . . Shielding Activations . | . . . . . . . . . . Robots Disrupted . | . . . . . . . . . . Combat Hostiles . | . . . . . . . . . . Robots Corrupted 2 | . . . . . . . 2 . . Combat Hostiles 2 | . . . . . . . 2 . . Parts Fried 6 | . . . 2 . . . 4 . . Impact Corruptions 9 | . . . . . . . 9 . . Robots Melted 3 | . . . . 1 . 1 1 . . Combat Hostiles 2 | . . . . 1 . . 1 . . Parts Melted 25 | . 1 . 3 6 . 1 10 4 . Heat Transferred 17588 | 148 851 148 4533 3182 74 1632 5262 1277 481 Parts Sabotaged . | . . . . . . . . . . Parts Stolen . | . . . . . . . . . . Parts Stripped . | . . . . . . . . . . Power Chain Reactions 6 | . . . 1 . . 3 2 . . Alert | -11 -10 -10 -8 -7 -7 -7 -6 -6 -6 ------- Run | Yrd Mat Sub Mat Fac Was Fac Fac Low Dat Maximum Alert Level 3 | . . . 1 1 . 3 2 . . Low Security (%) 58 | 100 100 . 42 97 100 24 40 . . Level 1 16 | . . . 57 2 . 9 11 . . Level 2 24 | . . . . . . 63 47 . . Level 3 . | . . . . . . 2 . . . Level 4 . | . . . . . . . . . . Level 5 . | . . . . . . . . . . High Security . | . . . . . . . . . . Max Security . | . . . . . . . . . . Peak Influence 718 | 30 66 . 336 216 2 718 661 . . Initial 195 | . 11 . . 117 2 . 195 . . Average 235 | 8 17 . 207 105 . 431 332 . . Influence Increases 5948 | 45 163 . 1300 973 . 1183 2054 230 . Destroy 0b10 Robot/C 3080 | 20 80 . 680 580 . 500 1020 200 . Destroy 0b10 Robot/NC 435 | 25 25 . 105 60 . 70 150 . . Destroy Leader 776 | . 24 . 196 136 . 148 242 30 . Allied During Kill 196 | . . . . . . 196 . . . Successful Hack 74 | . . . 12 1 . 1 60 . . Disable Machine 522 | . . . 81 99 . 63 279 . . Anti-Garrison Action 300 | . . . . . . 150 150 . . Destroy Structure 430 | . 4 . 211 67 . 55 93 . . Partial Spotted 30 | . 15 . . 15 . . . . . Lose Combat Pursuer 105 | . 15 . 15 15 . . 60 . . Influence Decreases 5948 | 25 181 2 1000 1264 9 721 2176 513 57 Entered New Map 678 | . 9 2 . 183 7 . 267 153 57 Time Decay 4485 | 25 172 . 920 1021 2 621 1424 300 . Lost Part 440 | . . . 80 60 . . 240 60 . Lost Ally 100 | . . . . . . 100 . . . Purge Threat 245 | . . . . . . . 245 . . Squads Dispatched 42 | . 1 . 4 9 . 9 19 . . Investigation 5 | . 1 . . . . 1 3 . . Extermination 14 | . . . . 4 . 3 7 . . Reinforcement 16 | . . . 4 4 . 3 5 . . Assault 2 | . . . . . . 1 1 . . Garrison 5 | . . . . 1 . 1 3 . . Intercept . | . . . . . . . . . . Searches Triggered . | . . . . . . . . . . Construction Impeded 4 | . . . 1 1 . 1 1 . . Haulers Reinforced 4 | . . . . 2 . 1 1 . . Active Scanning Responses . | . . . . . . . . . . Cargo Convoy Interrupts 1 | . . . . . . . 1 . . Stealth | -11 -10 -10 -8 -7 -7 -7 -6 -6 -6 --------- Run | Yrd Mat Sub Mat Fac Was Fac Fac Low Dat Distress Signals 12 | . 1 . 5 2 . 1 3 . . Communications Jammed . | . . . . . . . . . . Distress Signals . | . . . . . . . . . . Times Spotted 211 | 1 10 14 50 32 1 23 66 10 4 Peak Tracking Total 10 | 1 3 10 6 4 1 5 5 4 4 Tactical Retreats 5 | . 1 . 1 1 . . 2 . . Traps | -11 -10 -10 -8 -7 -7 -7 -6 -6 -6 ------- Run | Yrd Mat Sub Mat Fac Was Fac Fac Low Dat Traps Triggered 12 | . . . 4 3 . 2 3 . . Indirectly . | . . . . . . . . . . Trap Hack Attempts . | . . . . . . . . . . Triggered . | . . . . . . . . . . Disarmed . | . . . . . . . . . . Reprogrammed . | . . . . . . . . . . Reused . | . . . . . . . . . . Traps Extracted . | . . . . . . . . . . Installed . | . . . . . . . . . . Triggered . | . . . . . . . . . . Most Traps Carried 1 | . . 1 1 . . . . . . Machines | -11 -10 -10 -8 -7 -7 -7 -6 -6 -6 ---------- Run | Yrd Mat Sub Mat Fac Was Fac Fac Low Dat Machines Disabled 60 | . . . 9 11 . 8 32 . . Max in Single Turn 20 | . . . 2 4 . 3 20 . . Garrison Access 5 | . . . 1 1 . 2 1 . . Machines Repaired . | . . . . . . . . . . Machines Dismantled . | . . . . . . . . . . Machines Sabotaged . | . . . . . . . . . . Overloaded Fab Kills . | . . . . . . . . . . Hacking | -11 -10 -10 -8 -7 -7 -7 -6 -6 -6 --------- Run | Yrd Mat Sub Mat Fac Was Fac Fac Low Dat Machines Accessed 18 | . 2 . 2 5 . 3 6 . . Terminals 11 | . 1 . 1 2 . 2 5 . . Fabricators 1 | . . . . 1 . . . . . Repair Stations . | . . . . . . . . . . Recycling Units 1 | . 1 . . . . . . . . Scanalyzers 1 | . . . . 1 . . . . . Garrison Access 4 | . . . 1 1 . 1 1 . . Total Hacks 56 | . 8 . 5 14 . 8 21 . . Successful 31 | . 6 . 3 9 . 5 8 . . Failed 23 | . 2 . 2 4 . 2 13 . . Catastrophic 4 | . . . . 2 . . 2 . . Database Lockouts 2 | . . . . 1 . 1 . . . Manual 7 | . . . 3 . . 4 . . . Terminals 34 | . 3 . 4 3 . 6 18 . . Fabricators 2 | . . . . 2 . . . . . Repair Stations . | . . . . . . . . . . Recycling Units 5 | . 5 . . . . . . . . Scanalyzers 6 | . . . . 6 . . . . . Garrison Access 9 | . . . 1 3 . 2 3 . . Terminal Hacks 18 | . 2 . 2 2 . 4 8 . . Record 8 | . 1 . 2 . . 3 2 . . Robot Analysis 1 | . . . . . . . 1 . . Open DSF 5 | . . . . 2 . 1 2 . . Alert Level 2 | . 1 . . . . . 1 . . Unreport Threat 2 | . . . . . . . 2 . . Fabricator Hacks 1 | . . . . 1 . . . . . Network Status 1 | . . . . 1 . . . . . Repair Station Hacks . | . . . . . . . . . . Recycling Unit Hacks 4 | . 4 . . . . . . . . Report Inventory 1 | . 1 . . . . . . . . Retrieve Matter 1 | . 1 . . . . . . . . Retrieve Components 2 | . 2 . . . . . . . . Scanalyzer 5 | . . . . 5 . . . . . Retrieve Study 5 | . . . . 5 . . . . . Garrison Access Hacks 3 | . . . 1 1 . 1 . . . Seal Access 3 | . . . 1 1 . 1 . . . Unauthorized Hacks . | . . . . . . . . . . Terminals . | . . . . . . . . . . Fabricators . | . . . . . . . . . . Repair Stations . | . . . . . . . . . . Recycling Units . | . . . . . . . . . . Scanalyzers . | . . . . . . . . . . Garrison Access . | . . . . . . . . . . Data Cores Recovered 1 | . . . 1 . . . . . . Used . | . . . . . . . . . . Hacking Detections 11 | . 2 . 1 3 . 1 4 . . Full Trace Events 5 | . 1 . . . . 1 3 . . Feedback Events . | . . . . . . . . . . Feedback Blocked . | . . . . . . . . . . Robot Schematics Acquired . | . . . . . . . . . . Robots Built . | . . . . . . . . . . Authchips . | . . . . . . . . . . Time . | . . . . . . . . . . Total Robot Build Rating . | . . . . . . . . . . Part Schematics Acquired . | . . . . . . . . . . Parts Built . | . . . . . . . . . . Authchips . | . . . . . . . . . . Time . | . . . . . . . . . . Total Part Build Rating . | . . . . . . . . . . Part Studies Acquired 5 | . . . . 5 . . . . . Parts Repaired . | . . . . . . . . . . Time . | . . . . . . . . . . Parts Recycled . | . . . . . . . . . . Recycled Matter . | . . . . . . . . . . Retrieved Matter . | . . . . . . . . . . Retrieved Components 3 | . 3 . . . . . . . . Parts Scanalyzed . | . . . . . . . . . . Part Schematics Acquired . | . . . . . . . . . . Parts Damaged . | . . . . . . . . . . Bothacking | -11 -10 -10 -8 -7 -7 -7 -6 -6 -6 ------------ Run | Yrd Mat Sub Mat Fac Was Fac Fac Low Dat Used RIF Installer . | . . . . . . . . . . Robots Hacked . | . . . . . . . . . . Non-combat . | . . . . . . . . . . Combat . | . . . . . . . . . . Robot Hacks Applied . | . . . . . . . . . . Relay Couplers Released 1 | . . . . . . 1 . . . Machine Destruction 1 | . . . . . . 1 . . . Fabnet Peak Effective % . | . . . . . . . . . . Robots Rewired . | . . . . . . . . . . Allies Hacked . | . . . . . . . . . . Hacks Repelled . | . . . . . . . . . . Allies | -11 -10 -10 -8 -7 -7 -7 -6 -6 -6 -------- Run | Yrd Mat Sub Mat Fac Was Fac Fac Low Dat Total Allies 21 | . . . . . 21 . . . . Largest Group 21 | . . . . . 21 20 1 . . Highest-Rated Group 530 | . . . . . 530 516 20 . . Highest-Rated Ally 31 | . . . . . 31 31 20 . . Total Orders . | . . . . . . . . . . Ally Attacks 167 | . . . . . 17 150 . . . Total Damage 2365 | . . . . . 254 2111 . . . Kills 15 | . . . . . 1 14 . . . Allies Corrupted 1 | . . . . . . 1 . . . Allies Melted . | . . . . . . . . . . Intel | -11 -10 -10 -8 -7 -7 -7 -6 -6 -6 ------- Run | Yrd Mat Sub Mat Fac Was Fac Fac Low Dat Active Infowar (turns) 8373 | 12 386 . . 2178 471 1493 3113 604 116 Sensors 7975 | . . . . 2178 471 1493 3113 604 116 Terrain 1653 | 12 386 . . . . . 1255 . . Robot Analysis Total 1 | . . . . . . . 1 . . Derelict Logs Recovered . | . . . . . . . . . . Drone Launches . | . . . . . . . . . . Drone Recoveries . | . . . . . . . . . . Exploration | -11 -10 -10 -8 -7 -7 -7 -6 -6 -6 ------------- Run | Yrd Mat Sub Mat Fac Was Fac Fac Low Dat Turns Passed 10814 | 109 513 211 1893 2291 471 1493 3113 604 116 Spaces Moved 5781 | 98 389 100 886 1203 253 768 1790 268 26 Core 24 | 18 . . . . . . 6 . . Treads . | . . . . . . . . . . Legs . | . . . . . . . . . . Wheels 5757 | 80 389 100 886 1203 253 768 1784 268 26 Hover . | . . . . . . . . . . Flight . | . . . . . . . . . . Fastest Speed 50 | 50 80 150 138 145 160 160 120 130 355 Average Speed 155 | 74 98 184 173 167 162 169 139 185 355 Slowest Speed 650 | 80 150 220 265 195 205 220 650 355 355 Overloaded Moves . | . . . . . . . . . . Propulsion Burnouts . | . . . . . . . . . . Robots Hopped . | . . . . . . . . . . Potential Cave-ins . | . . . . . . . . . . Cave-ins Triggered . | . . . . . . . . . . Exploration Rate (%) 41 | 5 65 10 76 25 84 22 42 36 54 Regions Visited 9 Branch Regions 3 Pre-discovered Areas . | . . . . . . . . . . Known Exits Taken . | . . . . . . . . . . Unknown Exits Taken 7 | 1 1 1 1 . . 1 1 1 . Scrap Searched 1 | . . . . . . . . 1 . Spaces Dug 6 | . 2 . . . . . 4 . . Terrain Destroyed 575 | . 2 63 283 66 . 52 101 8 . Melee 2 | . 2 . . . . . . . . Projectile 86 | . . . 6 27 . 22 23 8 . AOE 487 | . . 63 277 39 . 30 78 . . Terrain Rammed . | . . . . . . . . . . Walls Destroyed . | . . . . . . . . . . Machines Disabled . | . . . . . . . . . . Actions | -11 -10 -10 -8 -7 -7 -7 -6 -6 -6 --------- Run | Yrd Mat Sub Mat Fac Was Fac Fac Low Dat Total 6681 | 116 451 114 1069 1323 311 869 2076 317 35 Wait 75 | 1 2 . 2 5 37 2 8 18 . Move 5773 | 97 388 99 885 1203 252 767 1789 267 26 Hop . | . . . . . . . . . . Pick Up 99 | 5 6 7 35 8 2 8 27 1 . Fast Attach 46 | 6 2 . 7 8 1 2 20 . . Attach 35 | . 2 . 6 5 2 4 11 3 2 Detach 8 | . 1 . . 1 1 4 1 . . Swap 60 | . 7 1 13 9 5 9 15 1 . Drop 101 | . 6 . 30 15 5 15 30 . . Fire 443 | 7 34 7 91 69 2 41 162 23 7 Melee 13 | . 3 . . . . . 10 . . Ram 4 | . . . . . . . . 4 . Kick . | . . . . . . . . . . Crush . | . . . . . . . . . . Escape Stasis 16 | . . . . . . 16 . . . Rewire 8 | . . . . . 4 1 3 . . Trap . | . . . . . . . . . . Miscellaneous . | . . . . . . . . . . Route ------- -11/Scrapyard -10/Materials (discovered 4 exits: [*Mat] / [*Min x2] / [*Sub]) -10/Subcaves -8/Materials (discovered 2 exits: *Fac x2) -7/Factory -7/Waste -7/Factory -6/Factory (discovered 2 exits: [*Fac] / [*Low]) -6/Lower Caves -6/Data Miner (discovered 1 exit: [*Pro]) History --------- Turn | Location | Event 2 | -11/Scrapyard | Met Revision 17 65 | -11/Scrapyard | Discovered new exit (range 8) 110 | -11/Scrapyard | Entered Materials 187 | -10/Materials | Discovered new exit (range 13) 320 | -10/Materials | Discovered new exit (range 3) 323 | -10/Materials | Build established: Mutant 390 | -10/Materials | Discovered new exit (range 12) 452 | -10/Materials | Discovered new exit (range 14) 623 | -10/Materials | Entered Subcaves 624 | -10/Subcaves | Approached by a straggling Scientist 659 | -10/Subcaves | Shifting Twisted Machinery released Sub. Shrapnel Launcher 663 | -10/Subcaves | Shifting Twisted Machinery released Sub. Laser 701 | -10/Subcaves | Ambushed by swarm of Subdwellers 709 | -10/Subcaves | Ambushed by Subdweller buried in earth 793 | -10/Subcaves | Shifting Twisted Machinery released Piercing Trap 813 | -10/Subcaves | Discovered new exit (range 6) 815 | -10/Subcaves | Shifting Twisted Machinery released Battle Cannon 834 | -10/Subcaves | Entered Materials 834 | -8/Materials | Evolved 4 slots: Power x1, Propulsion x1, Utility x1, Weapon x1 1344 | -8/Materials | Build established: Scavenger-Gunner 1364 | -8/Materials | Discovered new exit (range 11) 2050 | -8/Materials | Lost 3 parts (1p1n1w) 2700 | -8/Materials | Discovered new exit (range 16) 2727 | -8/Materials | Entered Factory 2727 | -7/Factory | Evolved 2 slots: Utility x1, Weapon x1 2847 | -7/Factory | Central database locked down 3140 | -7/Factory | Build established: Skirmisher 3672 | -7/Factory | Garrison activated, responded to threat 4997 | -7/Factory | Discovered new exit (range 16) 5018 | -7/Factory | Sucked down chute 5018 | -7/Factory | Entered Waste 5019 | -7/Waste | Met a frightened Derelict 5019 | -7/Waste | Joined by Warlord forces that had cleared the area 5168 | -7/Waste | A Compactor rumbled back to life 5173 | -7/Waste | Spotted C-40 Crusher 5173 | -7/Waste | Allies destroyed C-40 Crusher 5428 | -7/Waste | Discovered new exit (range 11) 5489 | -7/Waste | Entered Factory 5489 | -7/Factory | Accompanied by 20 allies 5682 | -7/Factory | Central database locked down 5888 | -7/Factory | Lost 4 allies 5972 | -7/Factory | Lost 6 allies 5981 | -7/Factory | Garrison activated, responded to threat 6078 | -7/Factory | P-60 Hacker assimilated allied NO-9QT(g) 6377 | -7/Factory | Core integrity fell below 50% 6602 | -7/Factory | Build established: Scavenger-Skirmisher 6963 | -7/Factory | Discovered new exit (range 10) 6982 | -7/Factory | Entered another Factory area 6982 | -6/Factory | Accompanied by 1 ally 6982 | -6/Factory | Evolved 2 slots: Propulsion x1, Utility x1 7019 | -6/Factory | Discovered new exit (range 7) 7116 | -6/Factory | P-60 Hacker assimilated allied BT-8S2(b) 7920 | -6/Factory | Garrison activated, responded to threat 7956 | -6/Factory | Spotted B-75 Beast 7979 | -6/Factory | Destroyed B-75 Beast 8030 | -6/Factory | Lost 3 parts (1p2n) 8171 | -6/Factory | Lost 4 parts (1p1n2w) 8573 | -6/Factory | Discovered new exit (range 16) 8683 | -6/Factory | Lost 3 parts (1u2w) 9697 | -6/Factory | Cargo convoy interrupted 10095 | -6/Factory | Entered Lower Caves 10096 | -6/Lower Caves | Encountered a Warlord checkpoint 10159 | -6/Lower Caves | Lost 3 parts (2p1n) 10206 | -6/Lower Caves | Lost 3 allies 10569 | -6/Lower Caves | Core integrity fell below 50% 10657 | -6/Lower Caves | A Derelict revealed a hidden shortcut to meet someone special 10699 | -6/Lower Caves | Entered Data Miner 10699 | -6/Data Miner | Discovered new exit (range 6) 10767 | -6/Data Miner | Met Data Miner 10793 | -6/Data Miner | Data Conduit disabled 10809 | -6/Data Miner | Core integrity fell below 20% 10815 | -6/Data Miner | Destroyed by Enhanced Grunt with Neutron Cannon Last Messages --------------- 10786_ System corrupted: Adv. Beam Rifle misfires. 10786_ Data Miner disappears through a trap door. 10789_ Plasma Rifle destroyed. 10790_ Fission Core destroyed. 10793_ Data Conduit disabled. [Achievement: More Dakka Please] 10804_ Flak Gun destroyed. 10806_ Wheel+ destroyed. 10806_ Deuterium Engine destroyed. 10806_ Huge Storage Unit destroyed. 10807_ Enhanced Grunt suffers critical hit (Burn). 10807_ Enhanced Grunt knocked back. 10809_ System corrupted: Energy discharge (-67). 10809_ Fission Core destroyed. 10810_ Enhanced Grunt destroyed. 10814_ Enhanced Grunt knocked back. [Achievement: 10k Club] Map ----- +----------------------------------------------------+ | | | | | | | | | | | | | | | | | | | | | | | | | | | | | | | ???????????????????????????????????????????? | | ???????????????????????????????????????????? | | ???????????????????????????????????????????? | | ???????????????????????????????????????????? | | ?????????????????????????????????????####??? | | ??????????###########??????????????### #??? | | ??????????""" """"""######????????## #??? | | ?????????"""" """" ""# # # # ## < ##??? | | ???????"""""" g g #### | | ???????""" % g | | ???????""" @ | | ??????""" | | ??????"""" | | ???????""" """ """"""""""""#### | | ????????""" """"###############??? | | ????????""" """""###????????????????? | | ?????????"""" "#####??????????????????? | | ?????????###";# "#??????????????????????? | | ???????????#"### "#??????????????????????? | | ???????????#"??# "???????????????????????? | | ??????????????? "???????????????????????? | | ??????????????# ????????????????????????? | | ?????????????? ????????????????????????? | | ??????????????## ????????????????????????? | | ???????????????# ????????????????????????? | | ???????????????? ????????????????????????? | | ???????????????????????????????????????????? | | ???????????????????????????????????????????? | | ???????????????????????????????????????????? | | ???????????????????????????????????????????? | | ???????????????????????????????????????????? | | ???????????????????????????????????????????? | | ???????????????????????????????????????????? | | ???????????????????????????????????????????? | | ???????????????????????????????????????????? | +----------------------------------------------------+ Best States ------------- Heat Dissipation 75 Energy Generation 38 Energy Capacity 690 Matter Stores 350 Matter Capacity 350 Sight Range 16 Robot Scan Range 15 Terrain Scan Range 16 Terrain Scan Density 10 Additional Mass Support 12 Resistance: KI 20 Resistance: TH 20 Resistance: EX 20 Resistance: EM 20 Resistance: I 20 Resistance: S 20 Resistance: P 20 Evasion (%) 50 Offensive Hacking 10 Item Schematics ----------------- None Robot Schematics ------------------ None Fabricated ------------ Nothing Repaired ---------- Nothing Studied --------- Wheel | -7/Factory | Hacked Com. Wheel | -7/Factory | Hacked Ion Cannon | -7/Factory | Hacked Imp. Ion Engine | -7/Factory | Hacked Imp. Grenade Launcher | -7/Factory | Hacked Alien Tech Used ----------------- None Achievements -------------- 10k Club Backstab Bumper Bots DATA ERROR: Steam Global Achievement% Do Not Disturb Everything Is Under Control Hey, That's Mine! I Have A Map? I Spy It Was An Accident, I Swear More Dakka Please Power Corrupts The More The Merrier The Oracle Tourist Troublemaker We Are Legion Challenges ------------ None Game ------ Seed SurgeProjectileScrap Manual? 0 Play Time 01:42:53 Cumulative 3.5 hours Start 2025.12.28 @ 22:17:45 End 2025.12.29 @ 02:38:34 Sessions 1 Manual Loads 0 Difficulty Adventurer Special Mode None Game No. 2 Rogue 0 Adventurer 2 Explorer 0 Win Type - Total 0 Types 0/0/0/0/0/0/0/0/0/0 Lore% 2 Gallery% 7 Achievement% 10 Wizard Run 0 Options --------- Layout 1 ASCII 0 Keyboard 1 Movement Numpad Keybinds 0 Fullscreen 2 Font 24/Smallcaps Map View 50x35 Zoom Use 0% Tactical HUD 1 Map Filters NONE Filters NONE Steam 0 RUN: 3f2b6a6a-3d93-4768-85ed-ea4040b35f37